[Event "3rd FIDE WCCC Blitz G12 2019"]
[Site "Minsk"]
[Date "2019.08.18"]
[Round "6.6"]
[White "Babic, Milana"]
[Black "Petrova, Elizaveta"]
[Result "1-0"]
[ECO "A05"]
[WhiteElo "1689"]
[BlackElo "1573"]
[Annotator "NA"]
[PlyCount "131"]
[EventDate "2019.08.18"]
[EventType "swiss"]
[EventCountry "BLR"]
[SourceTitle "playchess.com"]
[Source "ChessBase"]
[SourceQuality "1"]
[TimeControl "300+2"]

1. Nf3 {[%emt 0:00:00]} Nf6 {[%emt 0:00:01]} 2. g3 {[%emt 0:00:00]} g6 {[%emt 0:00:03]} 3. Bg2 {[%emt 0:00:00]} Bg7 {[%emt 0:00:01]} 4. O-O {[%emt 0:00:00]} O-O {[%emt 0:00:02]} 5. d4 {[%emt 0:00:03]} d5 {[%emt 0:00:04]} 6. b3 c6 {[%emt 0:00:02]} 7. Bb2 {[%emt 0:00:05]} Nbd7 {[%emt 0:00:15]} 8. Nbd2 {[%emt 0:00:02]} Qc7 {[%emt 0:00:03]} 9. c4 {[%emt 0:00:02]} e6 {[%emt 0:00:05]} 10. Rc1 {[%emt 0:00:04]} Re8 {[%emt 0:00:11]} 11. Re1 {[%emt 0:00:09]} Ne4 {[%emt 0:00:09]} 12. Qc2 {[%emt 0:00:20]} Ndf6 {[%emt 0:00:07]} 13. Ne5 {[%emt 0:00:03]} Nxd2 {[%emt 0:00:07]} 14. Qxd2 {[%emt 0:00:02]} Qe7 {[%emt 0:00:07]} 15. e4 {[%emt 0:00:11]} dxe4 {[%emt 0:00:15]} 16. Bxe4 {[%emt 0:00:01]} Nxe4 {[%emt 0:00:03]} 17. Rxe4 {[%emt 0:00:01]} Bxe5 {[%emt 0:00:35]} 18. Rxe5 {[%emt 0:00:03]} b6 {[%emt 0:00:09]} 19. Qc3 {[%emt 0:00:15]} f6 {[%emt 0:00:09]} 20. Re2 Qf7 {[%emt 0:00:07]} 21. Rce1 {[%emt 0:00:08]} Bb7 {[%emt 0:00:07]} 22. Re3 {[%emt 0:00:06]} Rad8 {[%emt 0:00:03]} 23. Rf3 {[%emt 0:00:07]} Qg7 {[%emt 0:00:18]} 24. Rfe3 {[%emt 0:00:24]} Qf7 {[%emt 0:00:02]} 25. b4 {[%emt 0:00:13]} a6 {[%emt 0:00:11]} 26. a4 {[%emt 0:00:03]} Rc8 {[%emt 0:00:22]} 27. Qc2 {[%emt 0:00:38]} c5 {[%emt 0:00:12]} 28. dxc5 {[%emt 0:00:32]} bxc5 {[%emt 0:00:01]} 29. b5 {[%emt 0:00:04]} axb5 {[%emt 0:00:04]} 30. axb5 {[%emt 0:00:01]} e5 {[%emt 0:00:17]} 31. Rd1 {[%emt 0:00:44]} Red8 {[%emt 0:00:02]} 32. Red3 {[%emt 0:00:07]} Qe7 {[%emt 0:00:17]} 33. Qd2 {[%emt 0:00:07]} Rxd3 {[%emt 0:00:07]} 34. Qxd3 {[%emt 0:00:01]} Re8 {[%emt 0:00:35]} 35. Qd7 {[%emt 0:00:14]} Kf7 {[%emt 0:00:05]} 36. Ba3 {[%emt 0:00:07]} Rc8 {[%emt 0:00:14]} 37. Rd6 {[%emt 0:00:14]} Rc7 {[%emt 0:00:08]} 38. Qxe7+ {[%emt 0:00:03]} Kxe7 {[%emt 0:00:02]} 39. Rd2 {[%emt 0:00:10]} f5 {[%emt 0:00:10]} 40. Kf1 {[%emt 0:00:02]} Be4 {[%emt 0:00:04]} 41. Ke2 {[%emt 0:00:04]} h5 {[%emt 0:00:10]} 42. b6 {[%emt 0:00:00]} Rb7 {[%emt 0:00:08]} 43. Bxc5+ {[%emt 0:00:01]} Kf6 {[%emt 0:00:01]} 44. f3 {[%emt 0:00:02]} Bb1 {[%emt 0:00:04]} 45. Rd6+ {[%emt 0:00:03]} Kg5 {[%emt 0:00:02]} 46. h4+ {[%emt 0:00:02]} Kh6 {[%emt 0:00:01]} 47. Rc6 {[%emt 0:00:03]} Ba2 {[%emt 0:00:00]} 48. Kd3 {[%emt 0:00:04]} e4+ {[%emt 0:00:03]} 49. fxe4 {[%emt 0:00:02]} fxe4+ {[%emt 0:00:01]} 50. Kxe4 {[%emt 0:00:04]} Rb8 {[%emt 0:00:09]} 51. Be3+ {[%emt 0:00:03]} Kg7 {[%emt 0:00:01]} 52. Rc7+ {[%emt 0:00:00]} Kf6 {[%emt 0:00:01]} 53. b7 {[%emt 0:00:03]} Re8+ {[%emt 0:00:02]} 54. Kd3 {[%emt 0:00:02]} Rd8+ {[%emt 0:00:01]} 55. Ke2 {[%emt 0:00:03]} Rb8 {[%emt 0:00:04]} 56. c5 {[%emt 0:00:03]} Bc4+ {[%emt 0:00:01]} 57. Kf2 {[%emt 0:00:03]} Ke5 {[%emt 0:00:01]} 58. c6 {[%emt 0:00:03]} Rf8+ {[%emt 0:00:02]} 59. Bf4+ {[%emt 0:00:05]} Kd5 {[%emt 0:00:02]} 60. Rg7 {[%emt 0:00:10]} Re8 {[%emt 0:00:01]} 61. b8=Q Re2+ {[%emt 0:00:02]} 62. Kf1 {[%emt 0:00:04]} Re7+ {[%emt 0:00:05]} 63. Kg2 {[%emt 0:00:03]} Rxg7 {[%emt 0:00:02]} 64. Qe5+ {[%emt 0:00:00]} Kxc6 {[%emt 0:00:02]} 65. Qxg7 {[%emt 0:00:01]} Bd5+ {[%emt 0:00:01]} 66. Kf2 {[%emt 0:00:01]} 1-0

[Event "3rd FIDE WCCC Blitz G12 2019"]
[Site "Minsk"]
[Date "2019.08.18"]
[Round "7.1"]
[White "Zhapova, Yana"]
[Black "Vu, My Linh"]
[Result "1-0"]
[ECO "B09"]
[WhiteElo "1809"]
[BlackElo "1467"]
[Annotator "NA"]
[PlyCount "61"]
[EventDate "2019.08.18"]
[EventType "swiss"]
[EventCountry "BLR"]
[SourceTitle "playchess.com"]
[Source "ChessBase"]
[SourceQuality "1"]
[TimeControl "300+2"]

1. e4 {[%emt 0:00:00]} d6 {[%emt 0:00:00]} 2. d4 {[%emt 0:00:02]} Nf6 {[%emt 0:00:00]} 3. Nc3 {[%emt 0:00:01]} g6 {[%emt 0:00:01]} 4. f4 {[%emt 0:00:02]} Bg7 {[%emt 0:00:01]} 5. Nf3 {[%emt 0:00:03]} a6 {[%emt 0:00:02]} 6. a4 {[%emt 0:00:02]} Nc6 {[%emt 0:00:01]} 7. Be2 {[%emt 0:00:02]} Bd7 {[%emt 0:00:06]} 8. O-O {[%emt 0:00:03]} O-O {[%emt 0:00:02]} 9. h3 {[%emt 0:00:01]} Nh5 {[%emt 0:00:04]} 10. Be3 {[%emt 0:00:30]} Ng3 {[%emt 0:00:05]} 11. Re1 {[%emt 0:00:01]} Nxe2+ {[%emt 0:00:04]} 12. Qxe2 {[%emt 0:00:01]} e5 {[%emt 0:00:07]} 13. Rad1 {[%emt 0:00:20]} exf4 {[%emt 0:00:33]} 14. Bxf4 h6 {[%emt 0:00:07]} 15. Qf2 {[%emt 0:00:27]} f5 {[%emt 0:00:16]} 16. e5 {[%emt 0:00:17]} g5 {[%emt 0:00:26]} 17. Bc1 {[%emt 0:00:36]} g4 {[%emt 0:00:09]} 18. Nh2 {[%emt 0:00:53]} dxe5 {[%emt 0:00:06]} 19. dxe5 {[%emt 0:00:10]} Bxe5 {[%emt 0:00:43]} 20. Nf1 {[%emt 0:00:11]} Bg7 {[%emt 0:00:59]} 21. Qc5 {[%emt 0:00:22]} Bd4+ {[%emt 0:00:47]} 22. Rxd4 Nxd4 {[%emt 0:00:01]} 23. Qxd4 {[%emt 0:00:08]} gxh3 {[%emt 0:00:32]} 24. Bxh6 {[%emt 0:00:26]} Rf7 {[%emt 0:00:12]} 25. Re3 {[%emt 0:00:29]} hxg2 {[%emt 0:00:19]} 26. Rg3+ {[%emt 0:00:24]} Kh7 {[%emt 0:00:00]} 27. Ne3 Kxh6 28. Rh3+ Kg6 29. Ncd5 Bc6 30. Nf4+ Kg5 31. Rh5# 1-0

[Event "3rd FIDE WCCC Blitz G12 2019"]
[Site "Minsk"]
[Date "2019.08.18"]
[Round "7.2"]
[White "Nguyen, Le Cam Hien"]
[Black "Vlasova, Olesia"]
[Result "0-1"]
[ECO "B20"]
[WhiteElo "1579"]
[BlackElo "1799"]
[Annotator "NA"]
[PlyCount "178"]
[EventDate "2019.08.18"]
[EventType "swiss"]
[EventCountry "BLR"]
[SourceTitle "playchess.com"]
[Source "ChessBase"]
[SourceQuality "1"]
[TimeControl "300+2"]

1. e4 {[%emt 0:00:00]} c5 {[%emt 0:00:00]} 2. d3 {[%emt 0:00:01]} Nc6 {[%emt 0:00:01]} 3. g3 {[%emt 0:00:01]} g6 {[%emt 0:00:01]} 4. Bg2 {[%emt 0:00:03]} Bg7 {[%emt 0:00:01]} 5. f4 {[%emt 0:00:01]} e6 {[%emt 0:00:06]} 6. Nf3 {[%emt 0:00:03]} Nge7 {[%emt 0:00:02]} 7. c3 {[%emt 0:00:03]} O-O {[%emt 0:00:05]} 8. O-O {[%emt 0:00:02]} d6 {[%emt 0:00:11]} 9. Kh1 {[%emt 0:00:08]} b5 {[%emt 0:00:23]} 10. Be3 {[%emt 0:00:05]} b4 {[%emt 0:00:19]} 11. d4 {[%emt 0:00:03]} Qb6 {[%emt 0:00:11]} 12. Rf2 {[%emt 0:00:51]} Rd8 {[%emt 0:00:23]} 13. Rd2 {[%emt 0:00:06]} Bb7 {[%emt 0:00:12]} 14. cxb4 {[%emt 0:00:21]} Qxb4 {[%emt 0:00:47]} 15. a3 {[%emt 0:00:06]} Qb6 {[%emt 0:00:06]} 16. Nc3 {[%emt 0:00:06]} cxd4 {[%emt 0:00:10]} 17. Nxd4 {[%emt 0:00:43]} Nxd4 {[%emt 0:00:12]} 18. Bxd4 {[%emt 0:00:13]} Bxd4 {[%emt 0:00:03]} 19. Rxd4 {[%emt 0:00:01]} Qxb2 {[%emt 0:00:35]} 20. Rb4 {[%emt 0:00:11]} Qxc3 {[%emt 0:00:07]} 21. Rxb7 {[%emt 0:00:01]} Kf8 {[%emt 0:00:17]} 22. Rb3 {[%emt 0:00:20]} Qg7 {[%emt 0:00:08]} 23. Rd3 {[%emt 0:00:19]} d5 {[%emt 0:00:16]} 24. exd5 {[%emt 0:00:03]} Nxd5 {[%emt 0:00:03]} 25. Bxd5 {[%emt 0:00:06]} Rxd5 {[%emt 0:00:03]} 26. Rxd5 {[%emt 0:00:01]} exd5 {[%emt 0:00:01]} 27. Rb1 {[%emt 0:00:11]} d4 {[%emt 0:00:15]} 28. Rb4 {[%emt 0:00:06]} Rd8 {[%emt 0:00:04]} 29. Qd3 {[%emt 0:00:01]} Qf6 {[%emt 0:00:05]} 30. Kg1 {[%emt 0:00:14]} Qd6 {[%emt 0:00:05]} 31. Kf2 {[%emt 0:00:22]} Qc5 {[%emt 0:00:03]} 32. Rc4 {[%emt 0:00:18]} Qb5 {[%emt 0:00:01]} 33. a4 {[%emt 0:00:06]} Qd5 {[%emt 0:00:05]} 34. Kg1 {[%emt 0:00:28]} Kg8 {[%emt 0:00:01]} 35. Rb4 {[%emt 0:00:02]} Qc5 {[%emt 0:00:12]} 36. Rc4 {[%emt 0:00:01]} Qb6 {[%emt 0:00:04]} 37. Kg2 {[%emt 0:00:07]} Qb2+ {[%emt 0:00:03]} 38. Kh3 {[%emt 0:00:02]} Qf2 {[%emt 0:00:03]} 39. Rc7 {[%emt 0:00:04]} Rd5 {[%emt 0:00:12]} 40. Rc8+ {[%emt 0:00:08]} Kg7 {[%emt 0:00:02]} 41. g4 {[%emt 0:00:05]} Qe3+ {[%emt 0:00:04]} 42. Qxe3 {[%emt 0:00:02]} dxe3 {[%emt 0:00:00]} 43. Re8 {[%emt 0:00:01]} Rd3 {[%emt 0:00:03]} 44. Kg2 {[%emt 0:00:01]} Ra3 {[%emt 0:00:02]} 45. Kf3 {[%emt 0:00:02]} Rxa4 {[%emt 0:00:03]} 46. Rxe3 {[%emt 0:00:01]} a5 {[%emt 0:00:03]} 47. h4 {[%emt 0:00:03]} Ra1 {[%emt 0:00:01]} 48. Re7 {[%emt 0:00:03]} a4 {[%emt 0:00:02]} 49. Ra7 {[%emt 0:00:02]} a3 {[%emt 0:00:01]} 50. Kg2 {[%emt 0:00:02]} Kf8 {[%emt 0:00:01]} 51. h5 {[%emt 0:00:02]} Ke8 {[%emt 0:00:03]} 52. hxg6 {[%emt 0:00:01]} hxg6 {[%emt 0:00:01]} 53. Kh2 {[%emt 0:00:02]} Kf8 {[%emt 0:00:05]} 54. Kg2 {[%emt 0:00:01]} Kg7 {[%emt 0:00:01]} 55. Kh2 {[%emt 0:00:01]} Kf6 {[%emt 0:00:01]} 56. Kg2 {[%emt 0:00:01]} Ke6 {[%emt 0:00:01]} 57. Kh2 Kf6 {[%emt 0:00:07]} 58. Ra5 {[%emt 0:00:07]} Ke6 {[%emt 0:00:04]} 59. Kg2 {[%emt 0:00:01]} f5 {[%emt 0:00:04]} 60. gxf5+ {[%emt 0:00:01]} gxf5 {[%emt 0:00:00]} 61. Kf2 {[%emt 0:00:04]} a2 {[%emt 0:00:03]} 62. Kg2 {[%emt 0:00:01]} Kf6 {[%emt 0:00:02]} 63. Ra6+ {[%emt 0:00:01]} Ke7 {[%emt 0:00:03]} 64. Kh2 {[%emt 0:00:01]} Kd7 {[%emt 0:00:00]} 65. Kg2 {[%emt 0:00:02]} Kc7 {[%emt 0:00:01]} 66. Ra3 {[%emt 0:00:04]} Kb6 {[%emt 0:00:01]} 67. Ra8 {[%emt 0:00:01]} Kb5 {[%emt 0:00:02]} 68. Rb8+ {[%emt 0:00:01]} Kc4 {[%emt 0:00:00]} 69. Ra8 {[%emt 0:00:03]} Kd3 {[%emt 0:00:02]} 70. Ra4 {[%emt 0:00:04]} Rd1 {[%emt 0:00:11]} 71. Ra3+ {[%emt 0:00:06]} Ke4 {[%emt 0:00:03]} 72. Rxa2 Kxf4 {[%emt 0:00:01]} 73. Kf2 {[%emt 0:00:03]} Kg4 {[%emt 0:00:03]} 74. Ra8 {[%emt 0:00:01]} Rd2+ {[%emt 0:00:01]} 75. Kf1 {[%emt 0:00:03]} f4 {[%emt 0:00:02]} 76. Ke1 {[%emt 0:00:03]} Rh2 {[%emt 0:00:03]} 77. Kf1 {[%emt 0:00:02]} Kg3 {[%emt 0:00:02]} 78. Rg8+ {[%emt 0:00:04]} Kf3 {[%emt 0:00:01]} 79. Kg1 {[%emt 0:00:01]} Ra2 {[%emt 0:00:02]} 80. Rb8 {[%emt 0:00:02]} Ra1+ {[%emt 0:00:02]} 81. Kh2 {[%emt 0:00:00]} Re1 {[%emt 0:00:04]} 82. Rb7 {[%emt 0:00:04]} Kf2 {[%emt 0:00:03]} 83. Rb4 {[%emt 0:00:03]} f3 {[%emt 0:00:02]} 84. Rb8 {[%emt 0:00:02]} Re7 {[%emt 0:00:04]} 85. Rh8 {[%emt 0:00:03]} Ke2 {[%emt 0:00:02]} 86. Kg3 {[%emt 0:00:03]} Rg7+ {[%emt 0:00:04]} 87. Kf4 {[%emt 0:00:02]} f2 {[%emt 0:00:01]} 88. Re8+ {[%emt 0:00:01]} Kf1 {[%emt 0:00:02]} 89. Kf3 {[%emt 0:00:01]} Kg1 {[%emt 0:00:01]} 0-1

[Event "3rd FIDE WCCC Blitz G12 2019"]
[Site "Minsk"]
[Date "2019.08.18"]
[Round "7.3"]
[White "Korovina, Yana"]
[Black "Shubenkova, Veronika"]
[Result "0-1"]
[ECO "B10"]
[WhiteElo "1511"]
[BlackElo "1740"]
[Annotator "NA"]
[PlyCount "144"]
[EventDate "2019.08.18"]
[EventType "swiss"]
[EventCountry "BLR"]
[SourceTitle "playchess.com"]
[Source "ChessBase"]
[SourceQuality "1"]
[TimeControl "300+2"]

1. e4 {[%emt 0:00:00]} c6 {[%emt 0:00:00]} 2. Nf3 {[%emt 0:00:01]} d5 {[%emt 0:00:00]} 3. d3 {[%emt 0:00:00]} e6 {[%emt 0:00:03]} 4. Be2 {[%emt 0:00:11]} Nf6 {[%emt 0:00:02]} 5. exd5 {[%emt 0:00:10]} exd5 {[%emt 0:00:02]} 6. d4 {[%emt 0:00:01]} Bd6 {[%emt 0:00:01]} 7. Nc3 {[%emt 0:00:03]} O-O {[%emt 0:00:02]} 8. O-O {[%emt 0:00:01]} Bf5 {[%emt 0:00:02]} 9. Bg5 {[%emt 0:00:03]} Nbd7 {[%emt 0:00:02]} 10. Bd3 {[%emt 0:00:07]} Bg4 {[%emt 0:00:14]} 11. Be2 {[%emt 0:00:05]} Qc7 {[%emt 0:00:03]} 12. h3 {[%emt 0:00:03]} Bh5 {[%emt 0:00:04]} 13. Qd2 {[%emt 0:00:01]} Rfe8 {[%emt 0:00:03]} 14. Rfe1 {[%emt 0:00:04]} Ne4 {[%emt 0:00:23]} 15. Nxe4 {[%emt 0:00:19]} Rxe4 {[%emt 0:00:44]} 16. c3 {[%emt 0:00:18]} f6 {[%emt 0:00:19]} 17. Be3 {[%emt 0:00:08]} Rae8 {[%emt 0:00:18]} 18. Rac1 {[%emt 0:00:35]} Nb6 {[%emt 0:00:17]} 19. b3 {[%emt 0:00:09]} Qd8 {[%emt 0:00:20]} 20. Qc2 {[%emt 0:00:37]} R4e7 {[%emt 0:00:55]} 21. Nh2 {[%emt 0:00:14]} Bg6 {[%emt 0:00:18]} 22. Bd3 {[%emt 0:00:07]} Kf7 {[%emt 0:00:17]} 23. Ng4 {[%emt 0:00:13]} Bb8 {[%emt 0:00:18]} 24. Bf5 {[%emt 0:00:28]} Qc7 {[%emt 0:00:15]} 25. Bxg6+ {[%emt 0:00:14]} hxg6 {[%emt 0:00:02]} 26. Qd3 {[%emt 0:00:35]} Nd7 {[%emt 0:00:07]} 27. g3 {[%emt 0:00:02]} f5 {[%emt 0:00:04]} 28. Nh2 {[%emt 0:00:24]} Nf6 {[%emt 0:00:06]} 29. Nf3 {[%emt 0:00:04]} Qd8 {[%emt 0:00:11]} 30. Ng5+ {[%emt 0:00:05]} Kg8 {[%emt 0:00:01]} 31. Qd2 {[%emt 0:00:11]} Ne4 {[%emt 0:00:04]} 32. Nxe4 {[%emt 0:00:01]} fxe4 {[%emt 0:00:03]} 33. Bf4 {[%emt 0:00:01]} Rf7 {[%emt 0:00:05]} 34. Bxb8 {[%emt 0:00:03]} Qxb8 {[%emt 0:00:01]} 35. Qe3 {[%emt 0:00:01]} Qd6 {[%emt 0:00:01]} 36. Rf1 {[%emt 0:00:04]} Rf3 {[%emt 0:00:01]} 37. Qe2 {[%emt 0:00:04]} Ref8 {[%emt 0:00:01]} 38. Kg2 {[%emt 0:00:09]} g5 {[%emt 0:00:07]} 39. Rc2 {[%emt 0:00:05]} Qg6 {[%emt 0:00:01]} 40. Rd2 {[%emt 0:00:02]} g4 {[%emt 0:00:00]} 41. h4 {[%emt 0:00:00]} e3 {[%emt 0:00:00]} 42. Rc2 {[%emt 0:00:06]} exf2 {[%emt 0:00:02]} 43. Qd2 {[%emt 0:00:08]} Qd6 {[%emt 0:00:04]} 44. Rxf2 {[%emt 0:00:07]} Qxg3+ {[%emt 0:00:03]} 45. Kf1 {[%emt 0:00:00]} Rxf2+ {[%emt 0:00:01]} 46. Qxf2 {[%emt 0:00:03]} Rxf2+ {[%emt 0:00:03]} 47. Rxf2 {[%emt 0:00:01]} Qxc3 {[%emt 0:00:01]} 48. Kg2 {[%emt 0:00:03]} Qxd4 {[%emt 0:00:01]} 49. h5 {[%emt 0:00:00]} Kh7 {[%emt 0:00:01]} 50. h6 {[%emt 0:00:01]} Kxh6 {[%emt 0:00:02]} 51. b4 {[%emt 0:00:01]} Qxb4 {[%emt 0:00:00]} 52. a4 Qxa4 53. Rf1 {[%emt 0:00:03]} Qe4+ {[%emt 0:00:04]} 54. Kg1 {[%emt 0:00:00]} Qf3 {[%emt 0:00:00]} 55. Rxf3 {[%emt 0:00:01]} gxf3 {[%emt 0:00:01]} 56. Kf2 {[%emt 0:00:01]} Kg5 {[%emt 0:00:00]} 57. Kxf3 {[%emt 0:00:01]} Kf5 {[%emt 0:00:00]} 58. Ke3 {[%emt 0:00:02]} g5 {[%emt 0:00:01]} 59. Kf2 {[%emt 0:00:00]} Kf4 {[%emt 0:00:01]} 60. Kg2 {[%emt 0:00:01]} d4 {[%emt 0:00:01]} 61. Kf2 {[%emt 0:00:00]} d3 {[%emt 0:00:00]} 62. Ke1 {[%emt 0:00:02]} Ke3 {[%emt 0:00:02]} 63. Kd1 {[%emt 0:00:00]} d2 {[%emt 0:00:00]} 64. Kc2 {[%emt 0:00:02]} Ke2 {[%emt 0:00:04]} 65. Kc3 {[%emt 0:00:03]} d1=Q {[%emt 0:00:01]} 66. Kc4 {[%emt 0:00:00]} Qd5+ {[%emt 0:00:01]} 67. Kc3 {[%emt 0:00:01]} g4 {[%emt 0:00:02]} 68. Kb4 {[%emt 0:00:02]} g3 {[%emt 0:00:02]} 69. Ka3 {[%emt 0:00:01]} g2 {[%emt 0:00:01]} 70. Kb2 {[%emt 0:00:01]} g1=Q {[%emt 0:00:01]} 71. Kc3 {[%emt 0:00:01]} Qc1+ {[%emt 0:00:02]} 72. Kb4 {[%emt 0:00:00]} Qb5# {[%emt 0:00:01]} 0-1

[Event "3rd FIDE WCCC Blitz G12 2019"]
[Site "Minsk"]
[Date "2019.08.18"]
[Round "7.4"]
[White "Babic, Masa"]
[Black "Shevtsova, Darya"]
[Result "0-1"]
[ECO "A06"]
[WhiteElo "1719"]
[BlackElo "1596"]
[Annotator "NA"]
[PlyCount "64"]
[EventDate "2019.08.18"]
[EventType "swiss"]
[EventCountry "BLR"]
[SourceTitle "playchess.com"]
[Source "ChessBase"]
[SourceQuality "1"]
[TimeControl "300+2"]

1. Nf3 {[%emt 0:00:00]} d5 {[%emt 0:00:00]} 2. g3 {[%emt 0:00:00]} Nf6 {[%emt 0:00:01]} 3. Bg2 {[%emt 0:00:00]} Bf5 {[%emt 0:00:06]} 4. O-O {[%emt 0:00:02]} e6 {[%emt 0:00:01]} 5. d3 {[%emt 0:00:01]} Be7 {[%emt 0:00:03]} 6. b3 {[%emt 0:00:01]} O-O {[%emt 0:00:02]} 7. Bb2 {[%emt 0:00:00]} c6 {[%emt 0:00:04]} 8. Nbd2 {[%emt 0:00:02]} Nbd7 {[%emt 0:00:03]} 9. c4 {[%emt 0:00:01]} Rc8 {[%emt 0:00:21]} 10. h3 {[%emt 0:00:02]} h6 {[%emt 0:00:02]} 11. Ne5 {[%emt 0:00:13]} Nxe5 12. Bxe5 {[%emt 0:00:02]} Nd7 {[%emt 0:01:02]} 13. Bb2 {[%emt 0:00:03]} Bf6 {[%emt 0:00:02]} 14. Bxf6 {[%emt 0:00:30]} Qxf6 {[%emt 0:00:05]} 15. e4 {[%emt 0:00:15]} dxe4 {[%emt 0:00:22]} 16. dxe4 {[%emt 0:00:08]} Bg6 {[%emt 0:00:04]} 17. Qe2 {[%emt 0:00:18]} Rfd8 {[%emt 0:00:10]} 18. Rfd1 {[%emt 0:00:06]} Nc5 {[%emt 0:00:13]} 19. Qe3 {[%emt 0:00:31]} Qd4 {[%emt 0:00:28]} 20. Qe2 {[%emt 0:00:36]} Qd3 {[%emt 0:00:22]} 21. Qe1 {[%emt 0:00:32]} Qc2 {[%emt 0:00:07]} 22. Rac1 {[%emt 0:00:08]} Qxa2 {[%emt 0:00:16]} 23. Qe3 {[%emt 0:00:22]} Qa5 {[%emt 0:00:48]} 24. Ra1 {[%emt 0:00:24]} Qb6 {[%emt 0:00:02]} 25. Qc3 {[%emt 0:00:50]} Rd3 {[%emt 0:00:08]} 26. Qc2 {[%emt 0:00:13]} Rcd8 {[%emt 0:00:04]} 27. Bf1 {[%emt 0:00:06]} R3d4 {[%emt 0:00:10]} 28. Qc3 {[%emt 0:00:03]} Nxb3 {[%emt 0:00:09]} 29. Rab1 Rxd2 {[%emt 0:00:17]} 30. Rxd2 {[%emt 0:00:03]} Rxd2 {[%emt 0:00:05]} 31. Rxb3 {[%emt 0:00:01]} Qxf2+ {[%emt 0:00:01]} 32. Kh1 {[%emt 0:00:03]} Qh2# 0-1

[Event "3rd FIDE WCCC Blitz G12 2019"]
[Site "Minsk"]
[Date "2019.08.18"]
[Round "7.5"]
[White "Liavonava, Yuliya"]
[Black "Babic, Milana"]
[Result "1/2-1/2"]
[ECO "B13"]
[WhiteElo "1297"]
[BlackElo "1689"]
[Annotator "NA"]
[PlyCount "78"]
[EventDate "2019.08.18"]
[EventType "swiss"]
[EventCountry "BLR"]
[SourceTitle "playchess.com"]
[Source "ChessBase"]
[SourceQuality "1"]
[TimeControl "300+2"]

1. e4 {[%emt 0:00:00]} c6 {[%emt 0:00:00]} 2. d4 {[%emt 0:00:00]} d5 {[%emt 0:00:00]} 3. exd5 {[%emt 0:00:00]} cxd5 {[%emt 0:00:00]} 4. Bd3 {[%emt 0:00:01]} Nc6 {[%emt 0:00:00]} 5. c3 {[%emt 0:00:01]} Nf6 {[%emt 0:00:01]} 6. Bf4 {[%emt 0:00:02]} Bg4 {[%emt 0:00:03]} 7. Qb3 Qc8 8. Nd2 {[%emt 0:00:05]} e6 {[%emt 0:00:03]} 9. Ngf3 {[%emt 0:00:01]} Be7 {[%emt 0:00:02]} 10. h3 {[%emt 0:00:02]} Bh5 {[%emt 0:00:01]} 11. Ne5 {[%emt 0:00:02]} Nxe5 {[%emt 0:00:11]} 12. Bxe5 {[%emt 0:00:02]} Bg6 {[%emt 0:00:01]} 13. Bb5+ {[%emt 0:00:08]} Kf8 {[%emt 0:00:25]} 14. O-O {[%emt 0:00:11]} a6 {[%emt 0:00:01]} 15. Be2 {[%emt 0:00:04]} Ne4 16. Nxe4 {[%emt 0:00:02]} Bxe4 {[%emt 0:00:07]} 17. c4 {[%emt 0:00:13]} f6 {[%emt 0:00:07]} 18. Bg3 {[%emt 0:00:13]} Qd7 {[%emt 0:00:48]} 19. c5 {[%emt 0:00:11]} Kf7 {[%emt 0:00:17]} 20. Bh5+ {[%emt 0:00:06]} g6 {[%emt 0:00:01]} 21. Bf3 {[%emt 0:00:08]} Bxf3 22. Qxf3 {[%emt 0:00:02]} Qb5 {[%emt 0:00:42]} 23. b3 {[%emt 0:00:15]} b6 {[%emt 0:00:04]} 24. cxb6 {[%emt 0:00:08]} Qxb6 {[%emt 0:00:02]} 25. Rac1 {[%emt 0:00:18]} Rac8 {[%emt 0:00:52]} 26. Qd3 {[%emt 0:00:13]} Qa5 27. a4 {[%emt 0:00:08]} Qb6 {[%emt 0:00:18]} 28. Rc3 {[%emt 0:01:00]} Bb4 {[%emt 0:00:04]} 29. Rxc8 Rxc8 {[%emt 0:00:01]} 30. Qe3 {[%emt 0:00:30]} Bc3 {[%emt 0:00:04]} 31. Qh6 {[%emt 0:00:05]} Kg8 {[%emt 0:00:06]} 32. Rc1 {[%emt 0:00:24]} Rc6 {[%emt 0:00:21]} 33. Qf4 {[%emt 0:00:29]} Kg7 {[%emt 0:00:17]} 34. h4 {[%emt 0:00:24]} Qb4 {[%emt 0:00:10]} 35. Kh1 {[%emt 0:00:19]} Qb6 {[%emt 0:00:16]} 36. f3 {[%emt 0:00:02]} Qb4 {[%emt 0:00:04]} 37. Bf2 {[%emt 0:00:03]} Bd2 {[%emt 0:00:03]} 38. Be1 {[%emt 0:00:13]} Bxf4 {[%emt 0:00:02]} 39. Bxb4 {[%emt 0:00:01]} Rxc1+ {[%emt 0:00:01]} 1/2-1/2